fUSD/lending_fUSD_20240831
["ID","MTS","AMOUNT","RATE_DAILY","PERIOD"]
[336739809,1725095383983,-500.0,0.00041095,120]
[336739810,1725095384020,-710.71,0.00041095,120]
[336739811,1725095384057,-500.0,0.00041095,120]
[336739812,1725095384095,-557.74,0.00041095,120]
[336739813,1725095384130,-500.0,0.00041095,120]
[336739814,1725095384172,-500.0,0.00041095,120]
[336739815,1725095384210,-500.0,0.00041095,120]
[336739816,1725095384250,-500.0,0.00041095,120]
[336739817,1725095384292,-500.0,0.00041095,120]
[336739818,1725095384330,-500.0,0.00041095,120]
[336739819,1725095384370,-500.0,0.00041095,120]
[336739820,1725095384407,-1123.23,0.00041095,120]
[336739821,1725095384446,-500.0,0.00041095,120]
[336739822,1725095384485,-500.0,0.00041095,120]
[336739823,1725095384525,-500.0,0.00041095,120]
[336739824,1725095384565,-500.0,0.00041095,120]
[336739825,1725095384607,-500.0,0.00041095,120]
[336739826,1725095384650,-762.64,0.00041095,120]
[336739827,1725095384691,-500.0,0.00041095,120]
[336739828,1725095384731,-500.0,0.00041095,120]
[336739829,1725095384770,-502.32,0.00041095,120]
[336739830,1725095384809,-526.20260998,0.00041095,120]
[336739831,1725095384848,-500.0,0.00041095,120]
[336739832,1725095384886,-679.85,0.00041095,120]
[336739833,1725095384925,-500.0,0.00041095,120]
[336739834,1725095384965,-500.0,0.00041095,120]
[336739835,1725095385004,-500.0,0.00041095,120]
[336739836,1725095385044,-721.55,0.00041095,120]
[336739837,1725095385082,-500.0,0.00041095,120]
[336739838,1725095385121,-500.0,0.00041095,120]
[336739839,1725095385159,-565.51,0.00041095,120]
[336739840,1725095385198,-500.0,0.00041095,120]
[336739841,1725095385233,-585.37082043,0.00041095,120]
[336739842,1725095385270,-500.0,0.00041095,120]
[336739843,1725095385307,-500.0,0.00041095,120]
[336739844,1725095385344,-500.0,0.00041095,120]
[336739845,1725095385379,-500.0,0.00041095,120]
[336739846,1725095385612,-500.0,0.00041095,120]
[336739847,1725095385654,-500.0,0.00041095,120]
[336739848,1725095385694,-500.0,0.00041095,120]
[336739849,1725095385734,-500.0,0.00041095,120]
[336739850,1725095385774,-549.02,0.00041095,120]
[336739851,1725095385815,-879.7,0.00041095,120]
[336739852,1725095385855,-1120.93,0.00041095,120]
[336739853,1725095385896,-500.0,0.00041095,120]
[336739854,1725095385937,-850.45,0.00041095,120]
[336739855,1725095385979,-500.0,0.00041095,120]
[336739856,1725095386021,-500.0,0.00041095,120]
[336739857,1725095386062,-500.0,0.00041095,120]
[336739858,1725095386102,-500.0,0.00041095,120]
[336739859,1725095386142,-720.15,0.00041095,120]
[336739860,1725095386183,-952.01,0.00041095,120]
[336739861,1725095386220,-500.0,0.00041095,120]
[336739862,1725095386256,-500.0,0.00041095,120]
[336739863,1725095386296,-500.0,0.00041095,120]
[336739864,1725095386331,-767.31,0.00041095,120]
[336739865,1725095386365,-500.0,0.00041095,120]
[336739866,1725095386398,-679.65,0.00041095,120]
[336739867,1725095386431,-500.0,0.00041095,120]
[336739868,1725095386465,-833.01,0.00041095,120]
[336739869,1725095386499,-515.11037645,0.00041095,120]
[336739870,1725095386534,-500.0,0.00041095,120]
[336739871,1725095386571,-1436.9,0.00041095,120]
[336739872,1725095386607,-717.79,0.00041095,120]
[336739873,1725095386643,-911.59,0.00041095,120]
[336739874,1725095386681,-931.07,0.00041095,120]
[336739875,1725095386718,-500.0,0.00041095,120]
[336739876,1725095386753,-727.87,0.00041095,120]
[336739877,1725095386790,-1205.13,0.00041095,120]
[336739878,1725095386827,-3164.47,0.00041095,120]
[336739879,1725095386864,-801.74,0.00041095,120]
[336739880,1725095386900,-500.0,0.00041095,120]
[336739881,1725095386936,-505.92,0.00041095,120]
[336739882,1725095386971,-500.0,0.00041095,120]
[336739883,1725095387006,-532.71,0.00041095,120]
[336739884,1725095387043,-1669.33,0.00041095,120]
[336739885,1725095387080,-263.07332396,0.00041095,120]
[336739886,1725095387118,-500.0,0.00041095,120]
[336739887,1725095387156,-1066.37,0.00041095,120]
[336739888,1725095387194,-622.08,0.00041095,120]
[336739889,1725095387230,-1994.12,0.00041095,120]
[336739890,1725095387267,-500.0,0.00041095,120]
[336739891,1725095387302,-309.34700315,0.00041095,120]
[336739892,1725095387338,-1009.62,0.00041095,120]
[336739893,1725095387378,-500.0,0.00041095,120]
[336739894,1725095387412,-740.53,0.00041095,120]
[336739895,1725095387445,-500.0,0.00041095,120]
[336739896,1725095387480,-1230.33,0.00041095,120]
[336739897,1725095387514,-1763.31,0.00041095,120]
[336739898,1725095387550,-500.0,0.00041095,120]
[336739899,1725095387585,-606.13,0.00041095,120]
[336739900,1725095387621,-500.0,0.00041095,120]
[336739901,1725095387656,-500.0,0.00041095,120]
[336739902,1725095387691,-291.08993749,0.00041095,120]
[336739903,1725095387725,-980.1,0.00041095,120]
[336739904,1725095387760,-988.12,0.00041095,120]
[336739905,1725095387794,-530.81,0.00041095,120]
[336739906,1725095387829,-924.86,0.00041095,120]
[336739907,1725095387862,-500.0,0.00041095,120]
[336739908,1725095387896,-500.0,0.00041095,120]
[336739909,1725095387930,-500.0,0.00041095,120]
[336739910,1725095387965,-3646.24,0.00041095,120]
[336739911,1725095387998,-708.43,0.00041095,120]
[336739912,1725095388031,-500.0,0.00041095,120]
[336739913,1725095388065,-4493.23,0.00041095,120]
[336739914,1725095388099,-728.19,0.00041095,120]
[336739915,1725095388133,-500.0,0.00041095,120]
[336739916,1725095388169,-950.06,0.00041095,120]
[336739917,1725095388203,-500.0,0.00041095,120]
[336739918,1725095388238,-575.64,0.00041095,120]
[336739919,1725095388273,-1920.7,0.00041095,120]
[336739920,1725095388308,-1812.32,0.00041095,120]
[336739921,1725095388343,-500.0,0.00041095,120]
[336739922,1725095388379,-1524.42,0.00041095,120]
[336739923,1725095388413,-500.0,0.00041095,120]
[336739924,1725095388447,-1447.18,0.00041095,120]
[336739925,1725095388481,-500.0,0.00041095,120]
[336739926,1725095388515,-500.0,0.00041095,120]
[336739927,1725095388551,-500.0,0.00041095,120]
[336739928,1725095388588,-592.47,0.00041095,120]
[336739929,1725095388625,-500.0,0.00041095,120]
[336739930,1725095388664,-500.0,0.00041095,120]
[336739931,1725095388701,-500.0,0.00041095,120]
[336739932,1725095388739,-2064.17,0.00041095,120]
[336739933,1725095388776,-1875.57,0.00041095,120]
[336739934,1725095388813,-500.0,0.00041095,120]
[336739935,1725095388850,-1128.77,0.00041095,120]
[336739936,1725095388887,-1217.2,0.00041095,120]
[336739937,1725095388924,-1083.85,0.00041095,120]
[336739938,1725095388959,-500.0,0.00041095,120]
[336739939,1725095388996,-282.25,0.00041095,120]
[336739940,1725095389031,-1019.1,0.00041095,120]
[336739941,1725095389066,-500.0,0.00041095,120]
[336739942,1725095389103,-710.75,0.00041095,120]
[336739943,1725095389138,-500.0,0.00041095,120]
[336739944,1725095389174,-517.99,0.00041095,120]
[336739945,1725095389210,-675.18,0.00041095,120]
[336739946,1725095389246,-500.0,0.00041095,120]
[336739947,1725095389287,-1486.52,0.00041095,120]
[336739948,1725095389324,-500.0,0.00041095,120]
[336739949,1725095389573,-500.0,0.00041095,120]
[336739950,1725095389617,-583.94,0.00041095,120]
[336739951,1725095389661,-738.68,0.00041095,120]
[336739952,1725095389702,-500.0,0.00041095,120]
[336739953,1725095389743,-500.0,0.00041095,120]
[336739954,1725095389783,-500.0,0.00041095,120]
[336739955,1725095389823,-500.0,0.00041095,120]
[336739956,1725095389863,-500.0,0.00041095,120]
[336739957,1725095389903,-719.07,0.00041095,120]
[336739958,1725095389942,-500.0,0.00041095,120]
[336739959,1725095389979,-3951.8,0.00041095,120]
[336739960,1725095390018,-500.0,0.00041095,120]
[336739961,1725095390056,-601.72,0.00041095,120]
[336739962,1725095390094,-1031.98,0.00041095,120]
[336739963,1725095390132,-500.0,0.00041095,120]
[336739964,1725095390172,-1766.78,0.00041095,120]
[336739965,1725095390208,-500.0,0.00041095,120]
[336739966,1725095390242,-743.24,0.00041095,120]
[336739967,1725095390278,-504.08,0.00041095,120]
[336739968,1725095390314,-1073.92,0.00041095,120]
[336739969,1725095390349,-500.0,0.00041095,120]
[336739970,1725095390383,-732.6,0.00041095,120]
[336739971,1725095390417,-500.0,0.00041095,120]
[336739972,1725095390455,-1147.38,0.00041095,120]
[336739973,1725095390489,-610.57,0.00041095,120]
[336739974,1725095390526,-500.0,0.00041095,120]
[336739975,1725095390564,-500.0,0.00041095,120]
[336739976,1725095390602,-642.6,0.00041095,120]
[336739977,1725095390646,-500.0,0.00041095,120]
[336739978,1725095390686,-1185.99,0.00041095,120]
[336739979,1725095390722,-500.0,0.00041095,120]
[336739980,1725095390759,-702.01,0.00041095,120]
[336739981,1725095390797,-500.0,0.00041095,120]
[336739982,1725095390834,-647.07,0.00041095,120]
[336739983,1725095390872,-500.0,0.00041095,120]
[336739984,1725095390909,-500.0,0.00041095,120]
[336739985,1725095390946,-500.0,0.00041095,120]
[336739986,1725095390982,-500.0,0.00041095,120]
[336739987,1725095391019,-500.0,0.00041095,120]
[336739988,1725095391055,-500.0,0.00041095,120]
[336739989,1725095391091,-500.0,0.00041095,120]
[336739990,1725095391127,-515.25,0.00041095,120]
[336739991,1725095391163,-500.0,0.00041095,120]
[336739992,1725095391199,-500.0,0.00041095,120]
[336739993,1725095391235,-500.0,0.00041095,120]
[336739994,1725095391270,-1293.85,0.00041095,120]
[336739995,1725095391306,-500.0,0.00041095,120]
[336739996,1725095391343,-500.0,0.00041095,120]
[336739997,1725095391379,-500.0,0.00041095,120]
[336739998,1725095391415,-500.0,0.00041095,120]
[336739999,1725095391452,-588.28,0.00041095,120]
[336740000,1725095391489,-500.0,0.00041095,120]
[336740001,1725095391527,-500.0,0.00041095,120]
[336740002,1725095391567,-500.0,0.00041095,120]
[336740003,1725095391605,-712.97,0.00041095,120]
[336740004,1725095391644,-1133.27,0.00041095,120]
[336740005,1725095391682,-500.0,0.00041095,120]
[336740006,1725095391722,-500.0,0.00041095,120]
[336740007,1725095391760,-674.44,0.00041095,120]
[336740008,1725095391798,-602.62,0.00041095,120]
[336740009,1725095391835,-1030.38,0.00041095,120]
[336740010,1725095391872,-510.96,0.00041095,120]
[336740011,1725095391910,-917.71,0.00041095,120]
[336740012,1725095391948,-500.0,0.00041095,120]
[336740013,1725095391986,-1707.8,0.00041095,120]
[336740014,1725095392024,-500.0,0.00041095,120]
[336740015,1725095392063,-537.31,0.00041095,120]
[336740016,1725095392103,-1038.22,0.00041095,120]
[336740017,1725095392141,-500.0,0.00041095,120]
[336740018,1725095392181,-500.0,0.00041095,120]
[336740019,1725095392221,-500.0,0.00041095,120]
[336740020,1725095392266,-500.0,0.00041095,120]
[336740021,1725095392307,-708.93,0.00041095,120]
[336740022,1725095392346,-1013.32,0.00041095,120]
[336740023,1725095392386,-500.0,0.00041095,120]
[336740024,1725095392426,-922.41,0.00041095,120]
[336740025,1725095392465,-500.0,0.00041095,120]
[336740026,1725095392502,-500.0,0.00041095,120]
[336740027,1725095392543,-500.0,0.00041095,120]
[336740028,1725095392583,-500.0,0.00041095,120]
[336740029,1725095392620,-500.0,0.00041095,120]
[336740030,1725095392658,-752.56,0.00041095,120]
[336740031,1725095392696,-884.82,0.00041095,120]
[336740032,1725095392732,-500.0,0.00041095,120]
[336740033,1725095392771,-894.96,0.00041095,120]
[336740034,1725095392810,-1104.47,0.00041095,120]
[336740035,1725095392848,-500.0,0.00041095,120]
[336740036,1725095392882,-1182.0,0.00041095,120]
[336740037,1725095392916,-500.0,0.00041095,120]
[336740038,1725095392950,-518.00783342,0.00041095,120]
[336740039,1725095392984,-991.63,0.00041095,120]
[336740040,1725095393017,-1615.56,0.00041095,120]
[336740041,1725095393051,-500.0,0.00041095,120]
[336740042,1725095393084,-1066.46,0.00041095,120]
[336740043,1725095393119,-1358.03,0.00041095,120]
[336740044,1725095393154,-1461.45,0.00041095,120]
[336740045,1725095393189,-500.0,0.00041095,120]
[336740046,1725095393223,-500.0,0.00041095,120]
[336740047,1725095393259,-832.48,0.00041095,120]
[336740048,1725095393296,-1180.6,0.00041095,120]
[336740049,1725095393333,-500.0,0.00041095,120]
[336740050,1725095393374,-500.0,0.00041095,120]
[336740051,1725095393418,-500.0,0.00041095,120]
[336740052,1725095393458,-623.33,0.00041095,120]
[336740053,1725095393697,-640.92,0.00041095,120]
[336740054,1725095393739,-507.13,0.00041095,120]
[336740055,1725095393780,-583.68,0.00041095,120]
[336740056,1725095393822,-638.13,0.00041095,120]
[336740057,1725095393862,-1033.65,0.00041095,120]
[336740058,1725095393907,-1435.64,0.00041095,120]
[336740059,1725095393950,-1120.04,0.00041095,120]
[336740060,1725095393991,-500.0,0.00041095,120]
[336740061,1725095394030,-500.0,0.00041095,120]
[336740062,1725095394069,-500.0,0.00041095,120]
[336740063,1725095394109,-507.63,0.00041095,120]
[336740064,1725095394148,-500.0,0.00041095,120]
[336740065,1725095394186,-500.0,0.00041095,120]
[336740066,1725095394223,-1116.05,0.00041095,120]
[336740067,1725095394259,-500.0,0.00041095,120]
[336740068,1725095394299,-923.19,0.00041095,120]
[336740069,1725095394337,-500.0,0.00041095,120]
[336740070,1725095394372,-500.0,0.00041095,120]
[336740071,1725095394408,-500.0,0.00041095,120]
[336740072,1725095394445,-500.0,0.00041095,120]
[336740073,1725095394482,-942.12,0.00041095,120]
[336740074,1725095394518,-500.0,0.00041095,120]
[336740075,1725095394560,-500.0,0.00041095,120]
[336740076,1725095394601,-500.0,0.00041095,120]
[336740077,1725095394642,-500.0,0.00041095,120]
[336740078,1725095394682,-1000.31,0.00041095,120]
[336740079,1725095394720,-500.0,0.00041095,120]
[336740080,1725095394761,-500.0,0.00041095,120]
[336740081,1725095394799,-500.0,0.00041095,120]
[336740082,1725095394837,-895.39,0.00041095,120]
[336740083,1725095394874,-1205.57,0.00041095,120]
[336740084,1725095394914,-1246.58,0.00041095,120]
[336740085,1725095394951,-602.93,0.00041095,120]
[336740086,1725095394987,-868.68,0.00041095,120]
[336740087,1725095395026,-523.71,0.00041095,120]
[336740088,1725095395063,-577.35,0.00041095,120]
[336740089,1725095395103,-500.0,0.00041095,120]
[336740090,1725095395140,-628.05,0.00041095,120]
[336740091,1725095395179,-525.64,0.00041095,120]
[336740092,1725095395216,-500.0,0.00041095,120]
[336740093,1725095395254,-500.0,0.00041095,120]
[336740094,1725095395295,-556.09,0.00041095,120]
[336740095,1725095395332,-500.0,0.00041095,120]
[336740096,1725095395377,-500.0,0.00041095,120]
[336740097,1725095395415,-818.9,0.00041095,120]
[336740098,1725095395455,-1130.01,0.00041095,120]
[336740099,1725095395492,-1535.29,0.00041095,120]
[336740100,1725095395530,-668.3,0.00041095,120]
[336740101,1725095395570,-500.0,0.00041095,120]
[336740102,1725095395608,-500.0,0.00041095,120]
[336740103,1725095395645,-500.0,0.00041095,120]
[336740104,1725095395684,-500.0,0.00041095,120]
[336740105,1725095395723,-500.0,0.00041095,120]
[336740106,1725095395764,-643.37,0.00041095,120]
[336740107,1725095395804,-500.0,0.00041095,120]
[336740108,1725095395843,-895.7,0.00041095,120]
[336740109,1725095395882,-856.48,0.00041095,120]
[336740110,1725095395920,-1174.72,0.00041095,120]
[336740111,1725095395959,-500.0,0.00041095,120]
[336740112,1725095395997,-1112.91,0.00041095,120]
[336740113,1725095396037,-2118.08,0.00041095,120]
[336740114,1725095396076,-1308.88,0.00041095,120]
[336740115,1725095396115,-1553.44,0.00041095,120]
[336740116,1725095396155,-500.0,0.00041095,120]
[336740117,1725095396194,-630.79,0.00041095,120]
[336740118,1725095396232,-1166.02,0.00041095,120]
[336740119,1725095396269,-1158.94,0.00041095,120]
[336740120,1725095396309,-703.89,0.00041095,120]
[336740121,1725095396348,-500.0,0.00041095,120]
[336740122,1725095396389,-500.0,0.00041095,120]
[336740123,1725095396427,-3532.54,0.00041095,120]
[336740124,1725095396463,-500.0,0.00041095,120]
[336740125,1725095396501,-500.0,0.00041095,120]
[336740126,1725095396539,-591.39,0.00041095,120]
[336740127,1725095396580,-376.0861272,0.00041095,120]
[336740128,1725095396618,-500.0,0.00041095,120]
[336740129,1725095396656,-2470.27,0.00041095,120]
[336740130,1725095396694,-2621.38,0.00041095,120]
[336740131,1725095396732,-628.61,0.00041095,120]
[336740132,1725095396769,-2571.2,0.00041095,120]
[336740133,1725095396805,-2254.77,0.00041095,120]
[336740134,1725095396842,-608.56,0.00041095,120]
[336740135,1725095396876,-2856.83,0.00041095,120]
[336740136,1725095396910,-500.0,0.00041095,120]
[336740137,1725095396946,-500.0,0.00041095,120]
[336740138,1725095396981,-787.27,0.00041095,120]
[336740139,1725095397016,-4198.98,0.00041095,120]
[336740140,1725095397050,-3814.21,0.00041095,120]
[336740141,1725095397085,-2319.72,0.00041095,120]
[336740142,1725095397120,-1187.21,0.00041095,120]
[336740143,1725095397154,-1080.36,0.00041095,120]
[336740144,1725095397189,-1282.16,0.00041095,120]
[336740145,1725095397224,-997.28,0.00041095,120]
[336740146,1725095397259,-4037.44,0.00041095,120]
[336740147,1725095397296,-500.0,0.00041095,120]
[336740148,1725095397333,-500.0,0.00041095,120]
[336740149,1725095397369,-1224.09,0.00041095,120]
[336740150,1725095397403,-500.0,0.00041095,120]
[336740151,1725095397437,-500.0,0.00041095,120]
[336740152,1725095397472,-2493.26,0.00041095,120]
[336740153,1725095397505,-1110.34,0.00041095,120]
[336740154,1725095397545,-1054.25,0.00041095,120]
[336740155,1725095397582,-590.31,0.00041095,120]
[336740156,1725095397621,-500.0,0.00041095,120]
[336740157,1725095397851,-2350.55,0.00041095,120]
[336740158,1725095397891,-1369.83,0.00041095,120]
[336740159,1725095397930,-1332.33,0.00041095,120]
[336740160,1725095397969,-200.0,0.00041217,120]
[336740161,1725095398011,-150.0,0.00041502,120]
[336740162,1725095398050,-645.29556195,0.00041643,120]
[336740163,1725095398087,-500.0,0.00041643,120]
[336740164,1725095398127,-500.0,0.00041643,120]
[336740165,1725095398167,-500.0,0.00041643,120]
[336740166,1725095398208,-500.0,0.00041643,120]
[336740167,1725095398252,-500.0,0.00041643,120]
[336740168,1725095398300,-500.0,0.00041643,120]
[336740169,1725095398344,-500.0,0.00041643,120]
[336740170,1725095398390,-500.0,0.00041643,120]
[336740171,1725095398435,-500.0,0.00041643,120]
[336740172,1725095398475,-500.0,0.00041643,120]
[336740173,1725095398523,-500.0,0.00041643,120]
[336740174,1725095398566,-500.0,0.00041643,120]
[336740175,1725095398609,-500.0,0.00041643,120]
[336740176,1725095398651,-500.0,0.00041643,120]
[336740177,1725095398691,-500.0,0.00041643,120]
[336740178,1725095398729,-500.0,0.00041643,120]
[336740179,1725095398766,-710.71,0.00041643,120]
[336740180,1725095398802,-500.0,0.00041643,120]
[336740181,1725095398840,-557.74,0.00041643,120]
[336740182,1725095398878,-500.0,0.00041643,120]
[336740183,1725095398915,-307.87041352,0.00041643,120]
[336740184,1725095398951,-568.80960803,0.00041643,120]
[336740185,1725095398989,-500.0,0.00041643,120]
[336740186,1725095399026,-500.0,0.00041643,120]
[336740187,1725095399062,-500.0,0.00041643,120]
[336740188,1725095399100,-500.0,0.00041643,120]
[336740189,1725095399137,-1123.23,0.00041643,120]
[336740190,1725095399176,-500.0,0.00041643,120]
[336740191,1725095399212,-500.0,0.00041643,120]
[336740192,1725095399248,-500.0,0.00041643,120]
[336740193,1725095399286,-331.20801089,0.00041643,120]
[336740194,1725095399324,-500.0,0.00041643,120]
[336740195,1725095399363,-762.64,0.00041643,120]
[336740196,1725095399399,-184.68298129,0.00041643,120]
[336740197,1725095399434,-500.0,0.00041643,120]
[336740198,1725095399472,-502.32,0.00041643,120]
[336740199,1725095399513,-500.0,0.00041643,120]
[336740200,1725095399554,-679.85,0.00041643,120]
[336740201,1725095399597,-500.0,0.00041643,120]
[336740202,1725095399639,-500.0,0.00041643,120]
[336740203,1725095399680,-500.0,0.00041643,120]
[336740204,1725095399724,-721.55,0.00041643,120]
[336740205,1725095399767,-540.0,0.00041643,120]
[336740206,1725095399809,-500.0,0.00041643,120]
[336740207,1725095399850,-565.51,0.00041643,120]
[336740208,1725095399889,-500.0,0.00041643,120]
[336740209,1725095399927,-500.0,0.00041643,120]
[336740210,1725095399967,-500.0,0.00041643,120]
[336740211,1725095400007,-500.0,0.00041643,120]
[336740212,1725095400045,-500.0,0.00041643,120]
[336740213,1725095400086,-500.0,0.00041643,120]
[336740214,1725095400132,-500.0,0.00041643,120]
[336740215,1725095400178,-500.0,0.00041643,120]
[336740216,1725095400219,-500.0,0.00041643,120]
[336740217,1725095400263,-549.02,0.00041643,120]
[336740218,1725095400309,-879.7,0.00041643,120]
[336740219,1725095400353,-1120.93,0.00041643,120]
[336740220,1725095400398,-253.08802147,0.00041643,120]
[336740221,1725095400441,-850.45,0.00041643,120]
[336740222,1725095400484,-500.0,0.00041643,120]
[336740223,1725095400526,-500.0,0.00041643,120]
[336740224,1725095400569,-500.0,0.00041643,120]
[336740225,1725095400613,-500.0,0.00041643,120]
[336740226,1725095400656,-720.15,0.00041643,120]
[336740227,1725095400698,-952.01,0.00041643,120]
[336740228,1725095400738,-500.0,0.00041643,120]
[336740229,1725095400779,-500.0,0.00041643,120]
[336740230,1725095400822,-500.0,0.00041643,120]
[336740231,1725095400865,-767.31,0.00041643,120]
[336740232,1725095400907,-500.0,0.00041643,120]
[336740233,1725095400948,-679.65,0.00041643,120]
[336740234,1725095400989,-500.0,0.00041643,120]
[336740235,1725095401030,-833.01,0.00041643,120]
[336740236,1725095401070,-500.0,0.00041643,120]
[336740237,1725095401109,-1436.9,0.00041643,120]
[336740238,1725095401150,-717.79,0.00041643,120]
[336740239,1725095401192,-911.59,0.00041643,120]
[336740240,1725095401234,-931.07,0.00041643,120]
[336740241,1725095401273,-285.9851993,0.00041643,120]
[336740242,1725095401312,-727.87,0.00041643,120]
[336740243,1725095401353,-1205.13,0.00041643,120]
[336740244,1725095401393,-3164.47,0.00041643,120]
[336740245,1725095401432,-801.74,0.00041643,120]
[336740246,1725095401474,-500.0,0.00041643,120]
[336740247,1725095401516,-505.92,0.00041643,120]
[336740248,1725095401558,-500.0,0.00041643,120]
[336740249,1725095401599,-532.71,0.00041643,120]
[336740250,1725095401641,-1669.33,0.00041643,120]
[336740251,1725095401684,-500.0,0.00041643,120]
[336740252,1725095401730,-1066.37,0.00041643,120]
[336740253,1725095401775,-622.08,0.00041643,120]
[336740254,1725095401817,-1994.12,0.00041643,120]
[336740255,1725095401860,-207.89779606,0.00041643,120]
[336740256,1725095401902,-1009.62,0.00041643,120]
[336740257,1725095401944,-500.0,0.00041643,120]
[336740258,1725095401985,-740.53,0.00041643,120]
[336740259,1725095402027,-500.0,0.00041643,120]
[336740260,1725095402070,-1230.33,0.00041643,120]
[336740261,1725095402309,-1763.31,0.00041643,120]
[336740262,1725095402352,-500.0,0.00041643,120]
[336740263,1725095402395,-606.13,0.00041643,120]
[336740264,1725095402436,-500.0,0.00041643,120]
[336740265,1725095402478,-500.0,0.00041643,120]
[336740266,1725095402521,-980.1,0.00041643,120]
[336740267,1725095402564,-988.12,0.00041643,120]
[336740268,1725095402609,-530.81,0.00041643,120]
[336740269,1725095402652,-924.86,0.00041643,120]
[336740270,1725095402697,-500.0,0.00041643,120]
[336740271,1725095402740,-500.0,0.00041643,120]
[336740272,1725095402783,-500.0,0.00041643,120]
[336740273,1725095402826,-3646.24,0.00041643,120]
[336740274,1725095402867,-708.43,0.00041643,120]
[336740275,1725095402910,-500.0,0.00041643,120]
[336740276,1725095402950,-4493.23,0.00041643,120]
[336740277,1725095402990,-728.19,0.00041643,120]
[336740278,1725095403035,-500.0,0.00041643,120]
[336740279,1725095403082,-950.06,0.00041643,120]
[336740280,1725095403128,-503.3057936,0.00041643,120]
[336740281,1725095403177,-575.64,0.00041643,120]
[336740282,1725095403225,-1920.7,0.00041643,120]
[336740283,1725095403273,-1812.32,0.00041643,120]
[336740284,1725095403320,-500.0,0.00041643,120]
[336740285,1725095403369,-1524.42,0.00041643,120]
[336740286,1725095403416,-500.0,0.00041643,120]
[336740287,1725095403462,-1447.18,0.00041643,120]
[336740288,1725095403504,-500.0,0.00041643,120]
[336740289,1725095403552,-500.0,0.00041643,120]
[336740290,1725095403601,-500.0,0.00041643,120]
[336740291,1725095403650,-592.47,0.00041643,120]
[336740292,1725095403698,-500.0,0.00041643,120]
[336740293,1725095403745,-500.0,0.00041643,120]
[336740294,1725095403793,-500.0,0.00041643,120]
[336740295,1725095403839,-2064.17,0.00041643,120]
[336740296,1725095403888,-1875.57,0.00041643,120]
[336740297,1725095403937,-500.0,0.00041643,120]
[336740298,1725095403987,-1128.77,0.00041643,120]
[336740299,1725095404037,-1217.2,0.00041643,120]
[336740300,1725095404085,-1083.85,0.00041643,120]
[336740301,1725095404133,-500.0,0.00041643,120]
[336740302,1725095404182,-1019.1,0.00041643,120]
[336740303,1725095404231,-500.0,0.00041643,120]
[336740304,1725095404280,-710.75,0.00041643,120]
[336740305,1725095404329,-500.0,0.00041643,120]
[336740306,1725095404376,-517.99,0.00041643,120]
[336740307,1725095404424,-675.18,0.00041643,120]
[336740308,1725095404474,-500.0,0.00041643,120]